fUSD/lending_fUSD_20260410
["ID","MTS","AMOUNT","RATE_DAILY","PERIOD"]
[420182576,1775755843877,-160.0,0.00015032,2]
[420182578,1775755843888,-174.61919141,0.00015032,2]
[420182580,1775755843898,-174.61919141,0.00015032,2]
[420182582,1775755843908,-151.0,0.00015032,2]
[420182584,1775755843917,-313.0,0.00015032,2]
[420182586,1775755843928,-2795.0,0.00015051,2]
[420182588,1775755843937,-500.0,0.00015051,2]
[420182590,1775755843947,-500.0,0.00015051,2]
[420182592,1775755843957,-500.0,0.00015051,2]
[420182594,1775755843968,-588.68809217,0.00015051,2]
[420182597,1775755843977,-500.0,0.00015051,2]
[420182599,1775755843986,-500.0,0.00015051,2]
[420182601,1775755843996,-558.26124718,0.00015051,2]
[420182603,1775755844006,-150.0,0.00015051,2]
[420182605,1775755844015,-234.76727952,0.00015051,2]
[420182607,1775755844025,-150.0,0.00015051,2]
[420182609,1775755844035,-150.0,0.00015051,2]
[420182611,1775755844045,-150.0,0.00015051,2]
[420182613,1775755844055,-150.0,0.00015051,2]
[420182615,1775755844065,-202.78121815,0.00015051,2]
[420182617,1775755844074,-500.0,0.00015051,2]
[420182619,1775755844085,-500.0,0.00015051,2]
[420182621,1775755844094,-500.0,0.00015051,2]
[420182623,1775755844103,-500.0,0.00015051,2]
[420182625,1775755844113,-150.0,0.00015051,2]
[420182627,1775755844123,-150.0,0.00015051,2]
[420182629,1775755844133,-150.0,0.00015051,2]
[420182631,1775755844143,-153.19078503,0.00015051,2]
[420182633,1775755844152,-500.0,0.00015051,2]
[420182636,1775755844163,-500.0,0.00015051,2]
[420182638,1775755844173,-275.37634528,0.00015051,2]
[420182640,1775755844183,-150.0,0.00015051,2]
[420182642,1775755844192,-150.0,0.00015051,2]
[420182644,1775755844202,-150.0,0.00015051,2]
[420182646,1775755844212,-150.0,0.00015051,2]
[420182648,1775755844222,-150.0,0.00015051,2]
[420182650,1775755844231,-172.71610205,0.00015051,2]
[420182652,1775755844241,-549.71086339,0.00015051,2]
[420182654,1775755844250,-150.0,0.00015051,2]
[420182656,1775755844260,-150.0,0.00015051,2]
[420182658,1775755844269,-150.0,0.00015051,2]
[420182660,1775755844279,-150.0,0.00015051,2]
[420182662,1775755844289,-150.0,0.00015051,2]
[420182664,1775755844299,-197.01408895,0.00015051,2]
[420182666,1775755844308,-207.44139279,0.00015051,2]
[420182668,1775755844318,-500.0,0.00015051,2]
[420182670,1775755844328,-500.0,0.00015051,2]
[420182673,1775755844338,-150.0,0.00015051,2]
[420182675,1775755844348,-500.0,0.00015051,2]
[420182677,1775755844357,-150.0,0.00015051,2]
[420182679,1775755844366,-500.0,0.00015051,2]
[420182681,1775755844376,-160.84791828,0.00015051,2]
[420182683,1775755844385,-500.0,0.00015051,2]
[420182685,1775755844395,-406.9309456,0.00015051,2]
[420182687,1775755844410,-39.19510487,0.00015051,2]
[420182689,1775755844420,-500.0,0.00015051,2]
[420182691,1775755844429,-500.0,0.00015051,2]
[420182693,1775755844439,-351.75693173,0.00015051,2]
[420182695,1775755844448,-150.0,0.00015051,2]
[420182698,1775755844458,-150.0,0.00015051,2]
[420182700,1775755844468,-150.0,0.00015051,2]
[420182702,1775755844478,-150.0,0.00015051,2]
[420182704,1775755844491,-150.0,0.00015051,2]
[420182706,1775755844501,-150.0,0.00015051,2]
[420182708,1775755844510,-150.0,0.00015051,2]
[420182710,1775755844520,-185.38942847,0.00015051,2]
[420182712,1775755844529,-150.0,0.00015051,2]
[420182714,1775755844539,-150.0,0.00015051,2]
[420182716,1775755844549,-268.16178489,0.00015051,2]
[420182719,1775755844558,-150.0,0.00015051,2]
[420182721,1775755844568,-150.0,0.00015051,2]
[420182723,1775755844578,-150.0,0.00015051,2]
[420182725,1775755844589,-202.5080601,0.00015051,2]
[420182727,1775755844598,-151.0,0.00015087,2]
[420182729,1775755844610,-239.0647,0.000151,2]
[420182731,1775755844621,-300.0,0.000151,2]
[420182733,1775755844631,-166.67,0.0001511,2]
[420182736,1775755844641,-151.0,0.00015142,2]
[420182738,1775755844652,-500.0,0.00015157,2]
[420182740,1775755844662,-151.0,0.00015197,2]
[420182742,1775755844672,-1000.0,0.000152,5]
[420182744,1775755844682,-578.8293702,0.00015211,2]
[420182746,1775755844692,-1131.65557397,0.00015211,2]
[420182748,1775755844702,-151.0,0.00015252,2]
[420182750,1775755844712,-1000.0,0.00015274,7]
[420182752,1775755844722,-500.0,0.0001529,5]
[420182755,1775755844732,-312.33918239,0.000153,2]
[420182757,1775755844742,-1300.0,0.000153,5]
[420182759,1775755844751,-387.0,0.00015354,2]
[420182761,1775755844761,-1777.0,0.00015354,2]
[420182763,1775755844770,-1600.0,0.000154,5]
[420182765,1775755844780,-13209.1313202,0.00015412,2]
[420182767,1775755844790,-29282.2315372,0.00015412,2]
[420182826,1775755845359,-2605.9781975,0.00015412,2]
[420182828,1775755845370,-506.0,0.00015489,4]
[420182831,1775755845380,-300.0,0.000155,5]
[420182834,1775755845390,-224.66071133,0.000155,2]
[420182837,1775755845399,-4000.0,0.00015507,2]
[420182840,1775755845410,-500.0,0.00015573,2]
[420182843,1775755845419,-500.0,0.00015573,2]
[420182846,1775755845428,-500.0,0.00015573,2]
[420182848,1775755845437,-500.0,0.00015573,2]
[420182850,1775755845446,-500.0,0.00015573,2]
[420182852,1775755845455,-500.0,0.00015573,2]
[420182854,1775755845465,-500.0,0.00015573,2]
[420182856,1775755845475,-500.0,0.00015573,2]
[420182859,1775755845485,-500.33240079,0.00015573,2]
[420182861,1775755845495,-200.0,0.0001558,2]
[420182863,1775755845505,-181.08010149,0.0001558,2]
[420182865,1775755845515,-181.08010149,0.0001558,2]
[420182866,1775755845525,-9182.07279104,0.000156,3]
[420182868,1775755845535,-18572.30953795,0.000156,2]
[420182979,1775755846622,-29512.98810999,0.000156,2]
[420182983,1775755846655,-13310.28257046,0.000156,2]
[420182986,1775755846666,-1966.580236,0.000156,2]
[420183028,1775755847074,-478.36182273,0.00015354,2]
[420183031,1775755847089,-292.63817727,0.00015354,2]
[420183033,1775755847098,-523301.85396806,0.000156,2]
[420183035,1775755847109,-68525.97040653,0.000156,2]
[420183037,1775755847121,-724.085,0.000156,2]
[420183040,1775755847167,-1629.0,0.00015412,2]
[420183041,1775755847176,-330.29828611,0.000156,2]
[420183769,1775757031876,-3010.5324853,9.401e-05,2]
[420183770,1775757031887,-300.0,9.405e-05,2]
[420183771,1775757031896,-1200.0,9.405e-05,2]
[420183772,1775757031906,-3448.715,9.406e-05,2]
[420183773,1775757031915,-172.406,9.406e-05,2]
[420183774,1775757031925,-1032.0,9.497e-05,2]
[420183775,1775757031935,-23121.20226393,9.498e-05,2]
[420183776,1775757031955,-15898.57863607,9.498e-05,2]
[420183777,1775757031965,-300.0,9.572e-05,2]
[420183778,1775757031974,-500.0,9.573e-05,2]
[420183779,1775757031984,-500.0,9.573e-05,2]
[420183780,1775757031993,-500.0,9.573e-05,2]
[420183781,1775757032005,-500.0,9.573e-05,2]
[420183782,1775757032014,-500.0,9.597e-05,2]
[420183783,1775757032024,-500.0,9.597e-05,2]
[420183784,1775757032033,-500.0,9.597e-05,2]
[420183785,1775757032043,-363.13633602,9.597e-05,2]
[420183786,1775757032052,-561.07241834,9.597e-05,2]
[420183787,1775757032062,-500.0,9.597e-05,2]
[420183788,1775757032077,-500.0,9.597e-05,2]
[420183789,1775757032087,-356.84066542,9.597e-05,2]
[420183790,1775757032096,-500.0,9.597e-05,2]
[420183791,1775757032106,-500.0,9.597e-05,2]
[420183792,1775757032115,-500.0,9.597e-05,2]
[420183793,1775757032125,-500.0,9.597e-05,2]
[420183794,1775757032135,-500.0,9.597e-05,2]
[420183795,1775757032144,-427.53779438,9.597e-05,2]
[420183796,1775757032155,-405.96126418,9.597e-05,2]
[420183797,1775757032164,-1072.04030549,9.597e-05,3]
[420183798,1775757032174,-150.0,9.597e-05,2]
[420183799,1775757032183,-12591.12157847,9.598e-05,2]
[420183800,1775757032195,-47561.517554,9.598e-05,2]
[420183801,1775757032219,-27808.32787695,9.598e-05,2]
[420183802,1775757032588,-781.95418243,9.598e-05,2]
[420183803,1775757032600,-533.4320082,9.598e-05,2]
[420183818,1775757039735,-3114.91369521,9.598e-05,2]
[420183819,1775757040147,-972.30495521,9.598e-05,2]
[420183820,1775757040475,-398.41279979,9.598e-05,2]
[420183821,1775757040606,-60432.28398467,9.598e-05,2]
[420183822,1775757040725,-652.64373122,9.598e-05,2]
[420183837,1775757042833,-500.0,9.597e-05,2]
[420183838,1775757042843,-500.0,9.597e-05,2]
[420183839,1775757042853,-402.41996122,9.597e-05,2]
[420183840,1775757042863,-1380.96126343,9.598e-05,2]
[420183841,1775757043043,-28148.17576888,9.598e-05,2]
[420183842,1775757043055,-2119.33276107,9.598e-05,2]
[420183843,1775757043267,-32487.16864913,9.598e-05,2]
[420183844,1775757043280,-880738.84447663,9.598e-05,2]
[420183845,1775757043451,-19950.89659433,9.598e-05,2]
[420183848,1775757043463,-13399.93207613,9.598e-05,2]
[420183915,1775757045661,-2501.62845334,9.598e-05,2]
[420183916,1775757045754,-777.056514,9.598e-05,2]
[420183917,1775757045766,-441.36,9.598e-05,2]
[420183954,1775757046666,-112610.06297691,9.598e-05,2]
[420183956,1775757046675,-1100.0,9.9e-05,3]
[420183958,1775757046685,-150.0,0.0001,2]
[420183960,1775757046694,-2200.0,0.0001,3]
[420183962,1775757046703,-962.68137363,0.00010121,2]
[420183964,1775757046713,-759.89905199,0.00010121,2]
[420183966,1775757046724,-240.10094801,0.00010121,2]
[420183968,1775757046734,-187.36420703,0.00010121,2]
[420184386,1775757938581,-171.636,9.307e-05,2]
[420184387,1775757938608,-3123.903,9.307e-05,2]
[420184388,1775757938635,-300.0,9.396e-05,2]
[420184389,1775757938661,-846.0,9.396e-05,2]
[420184390,1775757938687,-581.5577,9.397e-05,2]
[420184391,1775757938713,-1352.9335217,9.397e-05,2]
[420184392,1775757946092,-1147.0664783,9.397e-05,2]
[420184393,1775757946114,-500.0,9.473e-05,2]
[420184394,1775757946134,-562.81492935,9.473e-05,2]
[420184395,1775757946156,-300.0,9.494e-05,2]
[420184396,1775757946176,-150.0,9.495e-05,2]
[420184397,1775757946201,-604.52369122,9.496e-05,2]
[420184398,1775757946226,-500.0,9.496e-05,2]
[420184399,1775757946250,-600.0,9.496e-05,2]
[420184400,1775757946275,-500.0,9.496e-05,2]
[420184401,1775757946300,-500.0,9.496e-05,2]
[420184402,1775757946326,-500.0,9.496e-05,2]
[420184403,1775757946351,-500.0,9.496e-05,2]
[420184404,1775757946371,-500.0,9.496e-05,2]
[420184405,1775757946397,-500.0,9.496e-05,2]
[420184406,1775757946423,-500.0,9.496e-05,2]
[420184407,1775757946448,-500.0,9.496e-05,2]
[420184408,1775757946483,-500.0,9.496e-05,2]
[420184409,1775757946510,-500.0,9.496e-05,2]
[420184410,1775757946538,-610.73471984,9.496e-05,2]
[420184411,1775757946562,-47785.9478605,9.497e-05,2]
[420184412,1775758028088,-150.0,9.496e-05,2]
[420184413,1775758028113,-49122.54356942,9.497e-05,2]
[420184414,1775758043103,-34438.70529785,9.497e-05,2]
[420184415,1775758046717,-336853.05275255,9.497e-05,2]
[420184416,1775758071350,-5055.3463,9.397e-05,2]
[420184417,1775758071375,-29214.81372333,9.497e-05,2]
[420184418,1775758096201,430.95881578,8.901e-05,2]
[420184419,1775758146423,163.0,8.901e-05,3]
[420184420,1775758231845,-300.0,9.396e-05,2]
[420184421,1775758231855,-940.0,9.396e-05,2]
[420184422,1775758231864,-5278.463,9.397e-05,2]
[420184423,1775758231873,-33044.9118,9.397e-05,2]
[420184424,1775758231882,-500.0,9.473e-05,2]
[420184425,1775758231892,-500.0,9.496e-05,2]
[420184426,1775758231901,-190.08163554,9.496e-05,2]
[420184427,1775758231910,-150.0,9.496e-05,2]
[420184428,1775758231919,-61808.47931439,9.497e-05,2]
[420184429,1775758231935,-35975.0,9.497e-05,2]
[420184430,1775758231946,-30550.37858594,9.497e-05,2]
[420184431,1775758231957,-452.04785907,9.497e-05,2]
[420184432,1775758231995,-824.38638394,9.497e-05,2]
[420184433,1775758232006,-1046.42972454,9.497e-05,2]
[420184434,1775758232017,-729.0,9.497e-05,2]
[420184435,1775758232243,-159378.44532847,9.497e-05,2]
[420184437,1775758232253,-3434.0292615,9.566e-05,2]
[420184439,1775758232262,-151.0,0.0001,2]
[420184440,1775758232272,-200.0,0.0001,2]
[420184441,1775758232282,-500.0,0.0001,2]
[420184442,1775758232293,-151.0,0.0001,2]
[420184443,1775758232303,-812.63579297,0.00010021,2]
[420184444,1775758232313,-151.0,0.00010121,2]
[420184445,1775758232323,-4409.16575191,0.00010238,2]
[420184447,1775758232332,-1600.0,0.00010238,2]
[420184448,1775758232342,-420.0,0.00010335,2]
[420184449,1775758232353,-720.0,0.00010352,2]
[420184450,1775758232368,-156.64,0.0001036,2]
[420184451,1775758232378,-269.0,0.00010378,2]
[420184452,1775758232388,-255.0,0.00010445,2]
[420184453,1775758232398,-178.0,0.000105,5]
[420184454,1775758232408,-834.0,0.00010517,2]
[420184455,1775758232418,-212.44,0.00010532,2]
[420184456,1775758232430,-402.0,0.00010568,2]
[420184457,1775758232441,-184.00930196,0.00010589,2]
[420184458,1775758232451,-1838.0,0.00010607,2]
[420184459,1775758232460,-862.0,0.00010628,2]
[420184460,1775758232470,-1269.0,0.0001065,2]
[420184461,1775758232480,-313.0,0.00010666,2]
[420184462,1775758232490,-1100.0,0.000109,3]
[420184463,1775758232501,-2624.50291385,0.000109,2]
[420184464,1775758232510,-2624.50291381,0.000109,2]
[420184465,1775758232520,-150.0,0.00010959,2]
[420184466,1775758232530,-150.0,0.00011,2]
[420184467,1775758232539,-500.0,0.00011264,2]
[420184468,1775758232551,-1212.0,0.00011275,2]
[420184469,1775758232562,-587.0,0.00011369,2]
[420184470,1775758232572,-433.0,0.0001149,2]
[420184471,1775758232581,-1600.0,0.00011518,2]
[420184472,1775758232590,-2624.50291381,0.00011614,2]
[420184473,1775758232600,-170.9702496,0.00011826,2]
[420184474,1775758232609,-175.0691,0.000124,2]
[420184475,1775758232619,-2624.50291381,0.00012471,2]
[420184476,1775758232629,-335.03356611,0.00012547,2]
[420184477,1775758232638,-736.0,0.00012639,2]
[420184478,1775758232648,-429.6821645,0.00012647,2]
[420184479,1775758232657,-3371.94617576,0.00012647,2]
[420184480,1775758232667,-500.0,0.00012729,2]
[420184481,1775758232677,-157.26244288,0.00012729,2]
[420184482,1775758232686,-500.0,0.00012729,2]
[420184483,1775758232697,-500.0,0.00012729,2]
[420184484,1775758232708,-500.0,0.00012729,2]
[420184485,1775758232718,-420.72598837,0.00012729,2]
[420184486,1775758232727,-31657.70014012,0.0001273,2]
[420184487,1775758232740,-53188.68445417,0.0001273,2]
[420184488,1775758232752,-963.98811803,0.0001273,2]
[420184489,1775758232763,-1200.0,0.0001273,2]
[420184490,1775758232774,-2015.80487419,0.0001273,2]
[420184491,1775758233343,-1800.0,0.0001273,2]
[420184492,1775758237944,-449.3404125,0.0001273,2]
[420184493,1775758237999,-20197.1028935,0.0001273,2]
[420184494,1775758238053,-390.26603471,0.0001273,2]
[420184495,1775758238065,-110826.85227278,0.0001273,2]
[420184496,1775758238075,-151.0,0.0001273,2]
[420184497,1775758238086,-151.0,0.0001273,2]
[420184498,1775758238096,-151.0,0.0001273,2]
[420184499,1775758238106,-2500.01,0.00012747,2]
[420184500,1775758238117,-2000.0,0.00012784,2]
[420184501,1775758238128,-1600.0,0.00012797,2]
[420184502,1775758238139,-1051.37,0.00012817,2]
[420184503,1775758238151,-28428.88,0.0001283,2]
[420184504,1775758238161,-156.64,0.00012951,2]
[420184505,1775758238171,-3371.94617569,0.00012964,2]
[420184506,1775758238182,-250.0,0.00013,2]
[420184507,1775758238192,-160.0,0.00013062,2]
[420184508,1775758238203,-505.0,0.000131,2]
[420184509,1775758238215,-429.68216444,0.00013189,2]
[420184510,1775758238225,-3371.94617569,0.00013281,2]
[420184511,1775758238240,-2624.50291381,0.00013329,2]
[420184512,1775758238252,-3240.0,0.00013425,2]
[420184513,1775758238262,-3371.94617569,0.00013598,2]
[420184514,1775758238273,-500.0,0.00013698,2]
[420184515,1775758238284,-500.0,0.00013698,2]
[420184516,1775758238293,-500.0,0.00013698,2]
[420184517,1775758238303,-393.87,0.00013698,2]
[420184518,1775758238313,-500.0,0.00013698,2]
[420184519,1775758238324,-500.0,0.00013698,2]
[420184520,1775758238335,-285.93,0.00013698,2]
[420184521,1775758238345,-300.86613662,0.00013698,2]
[420184522,1775758238355,-500.0,0.00013698,2]
[420184523,1775758238367,-500.0,0.00013698,2]
[420184524,1775758238377,-500.0,0.00013698,2]
[420184525,1775758238387,-500.0,0.00013698,2]
[420184526,1775758238397,-514.02389529,0.00013698,2]
[420184527,1775758238407,-500.0,0.00013698,2]
[420184528,1775758238418,-500.0,0.00013698,2]
[420184529,1775758238428,-500.0,0.00013698,2]
[420184530,1775758238440,-500.0,0.00013698,2]
[420184531,1775758238450,-500.0,0.00013698,2]
[420184532,1775758238460,-500.0,0.00013698,2]
[420184534,1775758238469,-500.0,0.00013698,2]
[420184536,1775758238479,-500.0,0.00013698,2]
[420184538,1775758238490,-500.0,0.00013698,2]
[420184540,1775758238500,-500.0,0.00013698,2]
[420184542,1775758238510,-567.82,0.00013698,2]
[420184544,1775758238521,-500.0,0.00013698,2]
[420184546,1775758238531,-406.85460077,0.00013698,2]
[420184548,1775758238542,-150.0,0.00013699,2]
[420184550,1775758238552,-291.23,0.00013699,2]
[420184552,1775758238563,-166.66,0.00013699,2]
[420184555,1775758238574,-200.0,0.00013699,2]
[420184557,1775758238584,-204.328,0.000137,2]
[420184558,1775758238594,-155.29171554,0.000137,2]
[420184559,1775758238605,-427.31151114,0.00013716,2]
[420184560,1775758238615,-352.89683627,0.00013716,2]
[420184561,1775758238625,-429.68216444,0.00013731,2]
[420184562,1775758238635,-166.66,0.00013836,2]
[420184563,1775758238645,-1102.0,0.00013902,2]
[420184564,1775758238656,-3371.94617569,0.00013915,2]
[420184565,1775758238666,-150.0,0.00013973,2]
[420184566,1775758238677,-166.66,0.00013973,2]
[420184567,1775758238687,-1600.0,0.00014077,2]
[420184568,1775758238698,-166.66,0.0001411,2]
[420184569,1775758238709,-2624.50291381,0.00014186,2]
[420184570,1775758238719,-505.0,0.00014197,2]
[420184571,1775758238730,-1500.0,0.00014204,2]
[420184572,1775758238740,-162.0,0.00014214,2]
[420184573,1775758238751,-3371.94617569,0.00014232,2]
[420184574,1775758238762,-166.66,0.00014247,2]
[420184575,1775758238772,-150.0,0.00014247,2]
[420184576,1775758238784,-2602.69,0.00014258,2]
[420184577,1775758238795,-429.68216444,0.00014274,2]
[420184578,1775758238805,-2000.0,0.00014382,2]
[420184579,1775758238815,-291.23,0.00014384,2]
[420184580,1775758238827,-166.66,0.00014384,2]
[420184581,1775758238838,-1134.15624338,0.0001439,2]
[420184582,1775758238848,-205.7695367,0.00014432,2]
[420184583,1775758238859,-205.71625166,0.00014432,2]
[420184584,1775758238871,-3371.94617569,0.00014549,2]
[420184585,1775758238882,-446.36105,0.00014684,7]
[420184586,1775758238893,-160.0,0.00014684,7]
[420184587,1775758238903,-913.484912,0.00014684,7]
[420184588,1775758238913,-1666.969824,0.00014684,7]
[420184589,1775758238923,-160.0,0.00014684,2]
[420184590,1775758238933,-552.072689,0.00014684,2]
[420184591,1775758238943,-944.145378,0.00014684,2]
[420184592,1775758238954,-926.0,0.00014759,2]
[420184593,1775758238966,-1218.0,0.00014759,2]
[420184594,1775758238976,-415.0,0.00014759,2]
[420184595,1775758238987,-160.0,0.00014792,7]
[420184596,1775758238997,-557.371175,0.00014792,7]
[420184597,1775758239006,-954.74235,0.00014792,7]
[420184598,1775758239017,-429.68216444,0.00014816,2]
[420184599,1775758239027,-179.369548,0.00014846,7]
[420184600,1775758239037,-3252.66,0.00014853,2]
[420184601,1775758239047,-531.05,0.00014853,2]
[420184602,1775758239057,-3371.94617569,0.00014866,2]
[420184603,1775758239066,-150.0,0.0001488,2]
[420184604,1775758239076,-150.0,0.0001488,2]
[420184605,1775758239086,-150.0,0.0001488,2]
[420184606,1775758239096,-150.0,0.0001488,2]
[420184607,1775758239106,-150.0,0.0001488,2]
[420184608,1775758239116,-150.0,0.0001488,2]
[420184609,1775758239126,-1365.358,0.0001488,2]
[420184610,1775758239136,-1047.0,0.0001488,2]
[420184611,1775758239146,-3524.0,0.0001488,2]
[420184612,1775758239157,-622.0,0.0001488,2]
[420184613,1775758239167,-1264.0,0.0001488,2]
[420184614,1775758239176,-172.04,0.000149,2]
[420184615,1775758239187,-2300.0,0.000149,5]
[420184616,1775758239197,-677.0,0.00014913,2]
[420184617,1775758239208,-1051.37,0.0001498,2]
[420184618,1775758239220,-1191.11104075,0.00014984,2]
[420184619,1775758239230,-200.0,0.00014984,2]
[420184620,1775758239240,-174.61919141,0.00014984,2]
[420184621,1775758239250,-601.3376128,0.00014984,2]
[420184622,1775758239259,-7965.41053268,0.00014984,2]
[420184623,1775758239269,-160.0,0.00014984,2]
[420184624,1775758239279,-1500.0,0.00014984,2]
[420184625,1775758239289,-1500.0,0.00014984,2]
[420184626,1775758239299,-1500.0,0.00014984,2]
[420184627,1775758239309,-1500.0,0.00014984,2]
[420184628,1775758239319,-1500.0,0.00014984,2]
[420184629,1775758239329,-174.61919141,0.00014984,2]
[420184630,1775758239339,-1500.0,0.00014984,2]
[420184631,1775758239349,-1500.0,0.00014984,2]
[420184632,1775758239359,-1324.20832176,0.00014984,2]
[420184633,1775758239368,-174.61919141,0.00014984,2]
[420184634,1775758239378,-578.20924308,0.00014984,2]
[420184635,1775758239388,-743.50770149,0.00014984,2]
[420184636,1775758239397,-170.0,0.00014984,2]
[420184637,1775758239407,-151.0,0.00014984,2]
[420184638,1775758239418,-578.20924308,0.00014984,2]
[420184639,1775758239428,-279.9045709,0.00014984,2]
[420184640,1775758239437,-300.0,0.00015,2]
[420184641,1775758239448,-299.999999,0.00015,2]
[420184642,1775758239457,-387.0,0.00015024,2]
[420184643,1775758239467,-1814.0,0.00015024,2]
[420184644,1775758239478,-8260.13072239,0.00015039,2]
[420184645,1775758239490,-151.0,0.00015039,2]
[420184646,1775758239500,-2624.50291381,0.00015043,2]
[420184647,1775758239511,-2679.0,0.00015051,2]
[420184648,1775758239521,-1735.13,0.00015057,2]
[420184649,1775758239531,-291.23,0.00015068,2]
[420184650,1775758239540,-800.0,0.00015068,2]
[420184651,1775758239550,-1573.0,0.0001507,2]
[420184652,1775758239560,-155.29171554,0.0001507,2]
[420184653,1775758239570,-162.0,0.00015076,2]
[420184654,1775758239580,-8565.75555911,0.00015094,2]
[420184655,1775758239592,-151.0,0.00015094,2]
[420184656,1775758239602,-238.4768,0.000151,2]
[420184657,1775758239612,-8882.6885148,0.00015149,2]
[420184658,1775758239622,-151.0,0.00015149,2]
[420184659,1775758239631,-677.0,0.00015153,2]
[420184660,1775758239642,-3371.94617569,0.00015183,2]
[420184661,1775758239652,-3400.0,0.000152,5]
[420184662,1775758239664,-9211.34798985,0.00015204,2]
[420184663,1775758239673,-151.0,0.00015204,2]
[420184664,1775758239683,-2653.856011,0.00015259,2]
[420184665,1775758239693,-1573.0,0.00015287,2]
[420184666,1775758239703,-505.0,0.00015293,3]
[420184667,1775758239714,-4600.0,0.000153,5]
[420184668,1775758239728,-677.0,0.00015346,2]
[420184669,1775758239737,-669.0,0.00015355,2]
[420184670,1775758239747,-1600.0,0.00015357,2]
[420184671,1775758239756,-429.68216444,0.00015358,2]
[420184672,1775758239766,-1000.0,0.000154,2]
[420184673,1775758239776,-5800.0,0.000154,5]
[420184674,1775758239786,-202.891386,0.00015418,7]
[420184675,1775758239796,-1245.661244,0.00015418,7]
[420184676,1775758239806,-752.826394,0.00015418,2]
[420184677,1775758239815,-168.0,0.00015468,2]
[420184678,1775758239824,-250.0,0.00015485,2]
[420184679,1775758239835,-168.0,0.00015498,2]
[420184680,1775758239844,-1000.0,0.000155,2]
[420184681,1775758239854,-336.70315806,0.000155,2]
[420184682,1775758239864,-1100.0,0.000155,5]
[420184683,1775758239873,-3371.94617569,0.000155,2]
[420184684,1775758239883,-760.051602,0.00015531,7]
[420184686,1775758239892,-1235.18214925,0.00015532,2]
[420184687,1775758239902,-200.0,0.00015532,2]
[420184688,1775758239912,-198.94605926,0.00015532,2]
[420184689,1775758239922,-181.08010149,0.00015532,2]
[420184690,1775758239933,-181.08010149,0.00015532,2]
[420184691,1775758239943,-771.01748645,0.00015532,2]
[420184692,1775758239954,-269.24240896,0.00015532,2]
[420184693,1775758239965,-156.64,0.00015541,2]
[420184694,1775758239976,-500.0,0.00015573,2]
[420184695,1775758239986,-231.58259095,0.00015573,2]
[420184696,1775758239996,-501.06711075,0.00015573,2]
[420184697,1775758240005,-500.0,0.00015573,2]
[420184698,1775758240015,-500.0,0.00015573,2]
[420184699,1775758240024,-500.0,0.00015573,2]
[420184700,1775758240035,-500.0,0.00015573,2]
[420184701,1775758240045,-500.0,0.00015573,2]
[420184702,1775758240055,-500.0,0.00015573,2]
[420184703,1775758240065,-6278.1972754,0.00015582,2]
[420184704,1775758240074,-222.32206339,0.0001559,2]
[420184705,1775758240086,-222.32206339,0.0001559,2]
[420184706,1775758240099,-155.0,0.00015599,2]
[420184707,1775758240110,-500.0,0.00015599,2]
[420184708,1775758240120,-500.0,0.00015599,2]
[420184709,1775758240130,-500.0,0.00015599,2]
[420184710,1775758240141,-500.0,0.00015599,2]
[420184711,1775758240151,-500.0,0.00015599,2]
[420184712,1775758240162,-473.39,0.00015599,2]
[420184713,1775758240172,-328726.26380525,0.000156,2]
[420184714,1775758240183,-312069.0900732,0.000156,2]
[420184715,1775758240201,-872.18386813,0.000156,2]
[420184716,1775758240215,-430.68478754,0.000156,2]
[420184717,1775758240229,-5270.035374,0.000156,2]
[420184718,1775758240262,-265.712551,0.000156,2]
[420184719,1775758240274,-2851.21217869,0.000156,2]